Workbook

Sheet Valuation from Driver Formula
C3: Growth | D3: 0.05
C4: ROIC | D4: 0.15
C5: WACC | D5: 0.09
C7: NOPAT (2009) | D7: ='2004-2014 Financial Statements'!N211 -> 543692
C8: NOPAT Estimated | D8: ='2004-2014 Financial Statements'!O209*1000*(1-'2004-2014 Financial Statements'!O207) -> 497600
C9: Invested Capital (EOY 2009) | D9: ='2004-2014 Financial Statements'!N201 -> 1651908
C11: Total Invested Capital | D11: =D9 -> 1651908
C12: Less: Equity | D12: ='2004-2014 Financial Statements'!N101 -> 2652787
C13: EV to Equity Bridge
C15: Enterprise Value | F15: NOPAT x (1-g/ROIC)/(WACC-g)
C16: Less: EV to Equity Bridge
C17: Equity Value | D17: =D15-D16 -> 0
C19: Number of Shares | D19: ='2004-2014 Financial Statements'!N30 -> 83459.97392
C20: Equity Value per Share | D20: =D17/D19 -> 0

Sheet Cash Flow Model
A1: Time Period - Long-term Model
B2: Period | F2: 2009 | G2: 2010 | H2: 2011 | I2: 2012 | J2: 2013 | K2: 2014 | L2: 2015 | M2: 2016 | N2: 2017 | O2: 2018 | P2: 2019 | Q2: 2020 | R2: 2021 | S2: 2022 | T2: 2023 | U2: 2024 | V2: 2025 | W2: 2026 | X2: 2027 | Y2: 2028 | Z2: 2029 | AA2: 2030
B3: Holding Period | E3: 20 | F3: =F2+E3 -> 2029 | G3: =G2<=$F$3 -> TRUE | H3: =H2<=$F$3 -> TRUE | I3: TRUE | J3: TRUE | K3: TRUE | L3: TRUE | M3: TRUE | N3: TRUE | O3: TRUE | P3: TRUE | Q3: TRUE | R3: TRUE | S3: TRUE | T3: TRUE | U3: TRUE | V3: TRUE | W3: TRUE | X3: TRUE | Y3: TRUE | Z3: TRUE | AA3: FALSE
B4: Terminal Period | E4: =E3 -> 20 | F4: =F3 -> 2029 | G4: =G2=$F$4 -> FALSE | H4: =H2=$F$4 -> FALSE | I4: FALSE | J4: FALSE | K4: FALSE | L4: FALSE | M4: FALSE | N4: FALSE | O4: FALSE | P4: FALSE | Q4: FALSE | R4: FALSE | S4: FALSE | T4: FALSE | U4: FALSE | V4: FALSE | W4: FALSE | X4: FALSE | Y4: FALSE | Z4: TRUE | AA4: FALSE
B6: Results: Enterprise Value | E6: =E108 -> 8304627.389 | G6: EV | H6: =E6 -> 8304627.389 | J6: Terminal EV | K6: =E104 -> 26314719.65
B7: Less: EV to Equity Bridge | E7: =E31 -> -1000879 | G7: EBITDA | H7: =LOOKUP(G2,2:2,82:82) -> 612833.9608 | J7: Terminal EBITA | K7: =LOOKUP(F3,2:2,82:82) -> 1634873.975
B8: Equity Value | E8: =E6-E7 -> 9305506.389 | G8: EV/EBITDA | H8: =H6/H7 -> 13.55118665 | J8: EV/EBITDA | K8: =K6/K7 -> 16.09587041
B9: Equity Value per Share | E9: =E8/E32 -> 111.4966367
A11: Assumptions | E11: 2009 | F11: 2010 | G11: 2012 | H11: 2017 | I11: =F3+1 -> 2030
B13: ROIC Projected | F13: =E29 -> 0.3012274291 | G13: 0.25 | H13: 0.25 | I13: 0.25
B14: Cost of Capital | F14: 0.09 | G14: =F14 -> 0.09 | H14: =G14 -> 0.09 | I14: =H14 -> 0.09
B15: Growth | F15: 0.35 | G15: 0.1 | H15: 0.05 | I15: 0.05
B17: Partial Year Factor | E17: 0.5
B18: Depreciation Life | E18: 15
B19: Tax Rate | E19: 0.2
B20: Working Capital/Opening Plant Net | E20: 0.5
E22: Amount | F22: Pct
B23: Opening Net Plant | E23: ='2004-2014 Financial Statements'!N214 -> 1120197 | F23: =E23/E25 -> 0.6781231158
B24: Opening WC and Other | E24: ='2004-2014 Financial Statements'!N216 -> 531711 | F24: =E24/E23 -> 0.4746584753
B25: Opening Invested Capital | E25: =SUM(E23:E24) -> 1651908 | F25: =E25/E25 -> 1
B27: Historic Year NOPAT (2009) | E27: ='2004-2014 Financial Statements'!N211 -> 543692
B28: Intial Year NOPAT Forecast | E28: ='2004-2014 Financial Statements'!O209*1000*(1-'Cash Flow Model'!E19) -> 497600
B29: Initial Year ROIC (Opening Balance) | E29: =E28/E25 -> 0.3012274291
B31: EV to Equity Bridge | E31: ='2004-2014 Financial Statements'!N221 -> -1000879
B32: Shares in Valuation Year | E32: ='2004-2014 Financial Statements'!N30 -> 83459.97392
A34: Stable Depreciation Analysis
H35: Data Table with Alternative Growth
I36: =G2 -> 2010 | J36: =H11 -> 2017
B37: Growth | E37: =G15 -> 0.1 | I37: =G15 -> 0.1 | J37: =H15 -> 0.05
B38: Stable Cap Exp/Depreciation | E38: =LOOKUP(E18+1,42:42,48:48) -> 1.972106653 | H38: =E38 -> 1.972106653 | I38: 1.972106653 | J38: 1.445134314
B39: Depreciation to Net Plant | E39: =LOOKUP(E18+1,42:42,56:56) -> 0.102869371 | H39: =E39 -> 0.102869371 | I39: 0.102869371 | J39: 0.1123256474
G42: 1 | H42: 2 | I42: 3 | J42: 4 | K42: 5 | L42: 6 | M42: 7 | N42: 8 | O42: 9 | P42: 10 | Q42: 11 | R42: 12 | S42: 13 | T42: 14 | U42: 15 | V42: 16 | W42: 17 | X42: 18 | Y42: 19 | Z42: 20 | AA42: 21 | AB42: 21 | AC42: 21 | AD42: 21 | AE42: 21 | AF42: 21 | AG42: 21 | AH42: 21 | AI42: 21 | AJ42: 21 | AK42: 21 | AL42: 21 | AM42: 21 | AN42: 21 | AO42: 21 | AP42: 21 | AQ42: 21 | AR42: 21 | AS42: 21 | AT42: 21 | AU42: 21 | AV42: 21 | AW42: 21 | AX42: 21 | AY42: 21 | AZ42: 21 | BA42: 21 | BB42: 21 | BC42: 21 | BD42: 21
B43: Opening Balance | G43: =F46 -> 0 | H43: =G46 -> 1 | I43: 2.1 | J43: 3.31 | K43: 4.641 | L43: 6.1051 | M43: 7.71561 | N43: 9.487171 | O43: 11.4358881 | P43: 13.57947691 | Q43: 15.9374246 | R43: 18.53116706 | S43: 21.38428377 | T43: 24.52271214 | U43: 27.97498336 | V43: 31.77248169 | W43: 34.94972986 | X43: 38.44470285 | Y43: 42.28917313 | Z43: 46.51809045 | AA43: 51.16989949 | AB43: =AA46 -> 56.28688944 | AC43: =AB46 -> 61.91557839 | AD43: =AC46 -> 68.10713623 | AE43: =AD46 -> 74.91784985 | AF43: =AE46 -> 82.40963483 | AG43: =AF46 -> 90.65059832 | AH43: =AG46 -> 99.71565815 | AI43: =AH46 -> 109.687224 | AJ43: =AI46 -> 120.6559464 | AK43: =AJ46 -> 132.721541 | AL43: =AK46 -> 145.9936951 | AM43: =AL46 -> 160.5930646 | AN43: =AM46 -> 176.6523711 | AO43: =AN46 -> 194.3176082 | AP43: =AO46 -> 213.749369 | AQ43: =AP46 -> 235.1243059 | AR43: =AQ46 -> 258.6367365 | AS43: =AR46 -> 284.5004101 | AT43: =AS46 -> 312.9504511 | AU43: =AT46 -> 344.2454962 | AV43: =AU46 -> 378.6700459 | AW43: =AV46 -> 416.5370505 | AX43: =AW46 -> 458.1907555 | AY43: =AX46 -> 504.0098311 | AZ43: =AY46 -> 554.4108142 | BA43: =AZ46 -> 609.8518956 | BB43: =BA46 -> 670.8370851 | BC43: =BB46 -> 737.9207936 | BD43: =BC46 -> 811.712873
B44: Add: Capital Expenditures | E44: 1 | G44: =E44 -> 1 | H44: =G44*(1+$E$37) -> 1.1 | I44: 1.21 | J44: 1.331 | K44: 1.4641 | L44: 1.61051 | M44: 1.771561 | N44: 1.9487171 | O44: 2.14358881 | P44: 2.357947691 | Q44: 2.59374246 | R44: 2.853116706 | S44: 3.138428377 | T44: 3.452271214 | U44: 3.797498336 | V44: 4.177248169 | W44: 4.594972986 | X44: 5.054470285 | Y44: 5.559917313 | Z44: 6.115909045 | AA44: 6.727499949 | AB44: =AA44*(1+$E$37) -> 7.400249944 | AC44: 8.140274939 | AD44: 8.954302433 | AE44: 9.849732676 | AF44: 10.83470594 | AG44: 11.91817654 | AH44: 13.10999419 | AI44: 14.42099361 | AJ44: 15.86309297 | AK44: 17.44940227 | AL44: 19.1943425 | AM44: 21.11377675 | AN44: 23.22515442 | AO44: 25.54766986 | AP44: 28.10243685 | AQ44: 30.91268053 | AR44: 34.00394859 | AS44: 37.40434344 | AT44: 41.14477779 | AU44: 45.25925557 | AV44: 49.78518112 | AW44: 54.76369924 | AX44: 60.24006916 | AY44: 66.26407608 | AZ44: 72.89048369 | BA44: 80.17953205 | BB44: 88.19748526 | BC44: 97.01723378 | BD44: 106.7189572
B45: Less: Retirements | G45: =IF(G42>=$E$18,OFFSET(G44,0,-$E$18),0) -> 0 | H45: 0 | I45: 0 | J45: 0 | K45: 0 | L45: 0 | M45: 0 | N45: 0 | O45: 0 | P45: 0 | Q45: 0 | R45: 0 | S45: 0 | T45: 0 | U45: 0 | V45: 1 | W45: 1.1 | X45: 1.21 | Y45: 1.331 | Z45: 1.4641 | AA45: 1.61051 | AB45: =IF(AB42>=$E$18,OFFSET(AB44,0,-$E$18),0) -> 1.771561 | AC45: 1.9487171 | AD45: 2.14358881 | AE45: 2.357947691 | AF45: 2.59374246 | AG45: 2.853116706 | AH45: 3.138428377 | AI45: 3.452271214 | AJ45: 3.797498336 | AK45: 4.177248169 | AL45: 4.594972986 | AM45: 5.054470285 | AN45: 5.559917313 | AO45: 6.115909045 | AP45: 6.727499949 | AQ45: 7.400249944 | AR45: 8.140274939 | AS45: 8.954302433 | AT45: 9.849732676 | AU45: 10.83470594 | AV45: 11.91817654 | AW45: 13.10999419 | AX45: 14.42099361 | AY45: 15.86309297 | AZ45: 17.44940227 | BA45: 19.1943425 | BB45: 21.11377675 | BC45: 23.22515442 | BD45: 25.54766986
B46: Closing Balance | F46: 0 | G46: =G43+G44-G45 -> 1 | H46: =H43+H44-H45 -> 2.1 | I46: 3.31 | J46: 4.641 | K46: 6.1051 | L46: 7.71561 | M46: 9.487171 | N46: 11.4358881 | O46: 13.57947691 | P46: 15.9374246 | Q46: 18.53116706 | R46: 21.38428377 | S46: 24.52271214 | T46: 27.97498336 | U46: 31.77248169 | V46: 34.94972986 | W46: 38.44470285 | X46: 42.28917313 | Y46: 46.51809045 | Z46: 51.16989949 | AA46: 56.28688944 | AB46: =AB43+AB44-AB45 -> 61.91557839 | AC46: 68.10713623 | AD46: 74.91784985 | AE46: 82.40963483 | AF46: 90.65059832 | AG46: 99.71565815 | AH46: 109.687224 | AI46: 120.6559464 | AJ46: 132.721541 | AK46: 145.9936951 | AL46: 160.5930646 | AM46: 176.6523711 | AN46: 194.3176082 | AO46: 213.749369 | AP46: 235.1243059 | AQ46: 258.6367365 | AR46: 284.5004101 | AS46: 312.9504511 | AT46: 344.2454962 | AU46: 378.6700459 | AV46: 416.5370505 | AW46: 458.1907555 | AX46: 504.0098311 | AY46: 554.4108142 | AZ46: 609.8518956 | BA46: 670.8370851 | BB46: 737.9207936 | BC46: 811.712873 | BD46: 892.8841603
B47: Depreciation | E47: =1/E18 -> 0.06666666667 | G47: =G43*$E$47 -> 0 | H47: 0.06666666667 | I47: 0.14 | J47: 0.2206666667 | K47: 0.3094 | L47: 0.4070066667 | M47: 0.514374 | N47: 0.6324780667 | O47: 0.76239254 | P47: 0.9052984607 | Q47: 1.062494973 | R47: 1.235411137 | S47: 1.425618918 | T47: 1.634847476 | U47: 1.864998891 | V47: 2.118165446 | W47: 2.329981991 | X47: 2.56298019 | Y47: 2.819278209 | Z47: 3.10120603 | AA47: 3.411326633 | AB47: =AB43*$E$47 -> 3.752459296 | AC47: 4.127705226 | AD47: 4.540475748 | AE47: 4.994523323 | AF47: 5.493975656 | AG47: 6.043373221 | AH47: 6.647710543 | AI47: 7.312481598 | AJ47: 8.043729757 | AK47: 8.848102733 | AL47: 9.732913006 | AM47: 10.70620431 | AN47: 11.77682474 | AO47: 12.95450721 | AP47: 14.24995793 | AQ47: 15.67495373 | AR47: 17.2424491 | AS47: 18.96669401 | AT47: 20.86336341 | AU47: 22.94969975 | AV47: 25.24466972 | AW47: 27.7691367 | AX47: 30.54605037 | AY47: 33.6006554 | AZ47: 36.96072094 | BA47: 40.65679304 | BB47: 44.72247234 | BC47: 49.19471958 | BD47: 54.11419153
B48: Cap Exp to Depreciation | G48: =IF(G47,G44/G47) -> FALSE | H48: =IF(H47,H44/H47) -> 16.5 | I48: 8.642857143 | J48: 6.031722054 | K48: 4.732062056 | L48: 3.956962212 | M48: 3.444110705 | N48: 3.081082496 | O48: 2.811660264 | P48: 2.604608086 | Q48: 2.441180923 | R48: 2.30944713 | S48: 2.201449727 | T48: 2.111677857 | U48: 2.036193348 | V48: 1.972106653 | W48: 1.972106653 | X48: 1.972106653 | Y48: 1.972106653 | Z48: 1.972106653 | AA48: 1.972106653 | AB48: =IF(AB47,AB44/AB47) -> 1.972106653 | AC48: 1.972106653 | AD48: 1.972106653 | AE48: 1.972106653 | AF48: 1.972106653 | AG48: 1.972106653 | AH48: 1.972106653 | AI48: 1.972106653 | AJ48: 1.972106653 | AK48: 1.972106653 | AL48: 1.972106653 | AM48: 1.972106653 | AN48: 1.972106653 | AO48: 1.972106653 | AP48: 1.972106653 | AQ48: 1.972106653 | AR48: 1.972106653 | AS48: 1.972106653 | AT48: 1.972106653 | AU48: 1.972106653 | AV48: 1.972106653 | AW48: 1.972106653 | AX48: 1.972106653 | AY48: 1.972106653 | AZ48: 1.972106653 | BA48: 1.972106653 | BB48: 1.972106653 | BC48: 1.972106653 | BD48: 1.972106653
B50: Accum Depr
B51: Opening Balance | G51: =F54 -> 0 | H51: =G54 -> 0 | I51: 0.06666666667 | J51: 0.2066666667 | K51: 0.4273333333 | L51: 0.7367333333 | M51: 1.14374 | N51: 1.658114 | O51: 2.290592067 | P51: 3.052984607 | Q51: 3.958283067 | R51: 5.020778041 | S51: 6.256189178 | T51: 7.681808096 | U51: 9.316655572 | V51: 11.18165446 | W51: 12.29981991 | X51: 13.5298019 | Y51: 14.88278209 | Z51: 16.3710603 | AA51: 18.00816633 | AB51: =AA54 -> 19.80898296 | AC51: =AB54 -> 21.78988126 | AD51: =AC54 -> 23.96886938 | AE51: =AD54 -> 26.36575632 | AF51: =AE54 -> 29.00233195 | AG51: =AF54 -> 31.90256515 | AH51: =AG54 -> 35.09282166 | AI51: =AH54 -> 38.60210383 | AJ51: =AI54 -> 42.46231421 | AK51: =AJ54 -> 46.70854564 | AL51: =AK54 -> 51.3794002 | AM51: =AL54 -> 56.51734022 | AN51: =AM54 -> 62.16907424 | AO51: =AN54 -> 68.38598167 | AP51: =AO54 -> 75.22457983 | AQ51: =AP54 -> 82.74703781 | AR51: =AQ54 -> 91.0217416 | AS51: =AR54 -> 100.1239158 | AT51: =AS54 -> 110.1363073 | AU51: =AT54 -> 121.1499381 | AV51: =AU54 -> 133.2649319 | AW51: =AV54 -> 146.5914251 | AX51: =AW54 -> 161.2505676 | AY51: =AX54 -> 177.3756243 | AZ51: =AY54 -> 195.1131868 | BA51: =AZ54 -> 214.6245054 | BB51: =BA54 -> 236.086956 | BC51: =BB54 -> 259.6956516 | BD51: =BC54 -> 285.6652167
B52: Add: Depreciation Expense | G52: =G47 -> 0 | H52: =H47 -> 0.06666666667 | I52: 0.14 | J52: 0.2206666667 | K52: 0.3094 | L52: 0.4070066667 | M52: 0.514374 | N52: 0.6324780667 | O52: 0.76239254 | P52: 0.9052984607 | Q52: 1.062494973 | R52: 1.235411137 | S52: 1.425618918 | T52: 1.634847476 | U52: 1.864998891 | V52: 2.118165446 | W52: 2.329981991 | X52: 2.56298019 | Y52: 2.819278209 | Z52: 3.10120603 | AA52: 3.411326633 | AB52: =AB47 -> 3.752459296 | AC52: 4.127705226 | AD52: 4.540475748 | AE52: 4.994523323 | AF52: 5.493975656 | AG52: 6.043373221 | AH52: 6.647710543 | AI52: 7.312481598 | AJ52: 8.043729757 | AK52: 8.848102733 | AL52: 9.732913006 | AM52: 10.70620431 | AN52: 11.77682474 | AO52: 12.95450721 | AP52: 14.24995793 | AQ52: 15.67495373 | AR52: 17.2424491 | AS52: 18.96669401 | AT52: 20.86336341 | AU52: 22.94969975 | AV52: 25.24466972 | AW52: 27.7691367 | AX52: 30.54605037 | AY52: 33.6006554 | AZ52: 36.96072094 | BA52: 40.65679304 | BB52: 44.72247234 | BC52: 49.19471958 | BD52: 54.11419153
B53: Less: Retirements | G53: =G45 -> 0 | H53: =H45 -> 0 | I53: 0 | J53: 0 | K53: 0 | L53: 0 | M53: 0 | N53: 0 | O53: 0 | P53: 0 | Q53: 0 | R53: 0 | S53: 0 | T53: 0 | U53: 0 | V53: 1 | W53: 1.1 | X53: 1.21 | Y53: 1.331 | Z53: 1.4641 | AA53: 1.61051 | AB53: =AB45 -> 1.771561 | AC53: 1.9487171 | AD53: 2.14358881 | AE53: 2.357947691 | AF53: 2.59374246 | AG53: 2.853116706 | AH53: 3.138428377 | AI53: 3.452271214 | AJ53: 3.797498336 | AK53: 4.177248169 | AL53: 4.594972986 | AM53: 5.054470285 | AN53: 5.559917313 | AO53: 6.115909045 | AP53: 6.727499949 | AQ53: 7.400249944 | AR53: 8.140274939 | AS53: 8.954302433 | AT53: 9.849732676 | AU53: 10.83470594 | AV53: 11.91817654 | AW53: 13.10999419 | AX53: 14.42099361 | AY53: 15.86309297 | AZ53: 17.44940227 | BA53: 19.1943425 | BB53: 21.11377675 | BC53: 23.22515442 | BD53: 25.54766986
B54: Closing Balance | G54: =G51+G52-G53 -> 0 | H54: =H51+H52-H53 -> 0.06666666667 | I54: 0.2066666667 | J54: 0.4273333333 | K54: 0.7367333333 | L54: 1.14374 | M54: 1.658114 | N54: 2.290592067 | O54: 3.052984607 | P54: 3.958283067 | Q54: 5.020778041 | R54: 6.256189178 | S54: 7.681808096 | T54: 9.316655572 | U54: 11.18165446 | V54: 12.29981991 | W54: 13.5298019 | X54: 14.88278209 | Y54: 16.3710603 | Z54: 18.00816633 | AA54: 19.80898296 | AB54: =AB51+AB52-AB53 -> 21.78988126 | AC54: 23.96886938 | AD54: 26.36575632 | AE54: 29.00233195 | AF54: 31.90256515 | AG54: 35.09282166 | AH54: 38.60210383 | AI54: 42.46231421 | AJ54: 46.70854564 | AK54: 51.3794002 | AL54: 56.51734022 | AM54: 62.16907424 | AN54: 68.38598167 | AO54: 75.22457983 | AP54: 82.74703781 | AQ54: 91.0217416 | AR54: 100.1239158 | AS54: 110.1363073 | AT54: 121.1499381 | AU54: 133.2649319 | AV54: 146.5914251 | AW54: 161.2505676 | AX54: 177.3756243 | AY54: 195.1131868 | AZ54: 214.6245054 | BA54: 236.086956 | BB54: 259.6956516 | BC54: 285.6652167 | BD54: 314.2317384
B55: Net Plant | G55: =G43-G51 -> 0 | H55: =H43-H51 -> 1 | I55: 2.033333333 | J55: 3.103333333 | K55: 4.213666667 | L55: 5.368366667 | M55: 6.57187 | N55: 7.829057 | O55: 9.145296033 | P55: 10.5264923 | Q55: 11.97914153 | R55: 13.51038902 | S55: 15.12809459 | T55: 16.84090405 | U55: 18.65832779 | V55: 20.59082723 | W55: 22.64990995 | X55: 24.91490095 | Y55: 27.40639104 | Z55: 30.14703015 | AA55: 33.16173316 | AB55: =AB43-AB51 -> 36.47790648 | AC55: 40.12569713 | AD55: 44.13826684 | AE55: 48.55209353 | AF55: 53.40730288 | AG55: 58.74803317 | AH55: 64.62283648 | AI55: 71.08512013 | AJ55: 78.19363214 | AK55: 86.01299536 | AL55: 94.61429489 | AM55: 104.0757244 | AN55: 114.4832968 | AO55: 125.9316265 | AP55: 138.5247892 | AQ55: 152.3772681 | AR55: 167.6149949 | AS55: 184.3764944 | AT55: 202.8141438 | AU55: 223.0955582 | AV55: 245.405114 | AW55: 269.9456254 | AX55: 296.9401879 | AY55: 326.6342067 | AZ55: 359.2976274 | BA55: 395.2273902 | BB55: 434.7501292 | BC55: 478.2251421 | BD55: 526.0476563
B56: Depreciation to Net Plant | G56: =IF(G55,G47/G55) -> FALSE | H56: =IF(H55,H47/H55) -> 0.06666666667 | I56: 0.06885245902 | J56: 0.07110633727 | K56: 0.07342773515 | L56: 0.07581573539 | M56: 0.07826904671 | N56: 0.08078598312 | O56: 0.08336444629 | P56: 0.08600191161 | Q56: 0.08869541865 | R56: 0.0914415666 | S56: 0.09423651534 | T56: 0.09707599257 | U56: 0.09995530746 | V56: 0.102869371 | W56: 0.102869371 | X56: 0.102869371 | Y56: 0.102869371 | Z56: 0.102869371 | AA56: 0.102869371 | AB56: =IF(AB55,AB47/AB55) -> 0.102869371 | AC56: 0.102869371 | AD56: 0.102869371 | AE56: 0.102869371 | AF56: 0.102869371 | AG56: 0.102869371 | AH56: 0.102869371 | AI56: 0.102869371 | AJ56: 0.102869371 | AK56: 0.102869371 | AL56: 0.102869371 | AM56: 0.102869371 | AN56: 0.102869371 | AO56: 0.102869371 | AP56: 0.102869371 | AQ56: 0.102869371 | AR56: 0.102869371 | AS56: 0.102869371 | AT56: 0.102869371 | AU56: 0.102869371 | AV56: 0.102869371 | AW56: 0.102869371 | AX56: 0.102869371 | AY56: 0.102869371 | AZ56: 0.102869371 | BA56: 0.102869371 | BB56: 0.102869371 | BC56: 0.102869371 | BD56: 0.102869371
B58: Investment Balance
C59: Growth Rate Change
C60: Cap Exp to Depreciation (Interpolate) | G60: =interpolate_look_up(G2,36:36,38:38) -> 1.972106653 | H60: =interpolate_look_up(H2,36:36,38:38) -> 1.886433563 | I60: 1.804482319 | J60: 1.726091236 | K60: 1.651105652 | L60: 1.579377623 | M60: 1.510765633 | N60: 1.445134314 | O60: 1.445134314 | P60: 1.445134314 | Q60: 1.445134314 | R60: 1.445134314 | S60: 1.445134314 | T60: 1.445134314 | U60: 1.445134314 | V60: 1.445134314 | W60: 1.445134314 | X60: 1.445134314 | Y60: 1.445134314 | Z60: 1.445134314 | AA60: 1.445134314 | AB60: 1.16301782e+39 | AC60: 1.16301782e+39 | AD60: 1.16301782e+39 | AE60: 1.16301782e+39 | AF60: 1.16301782e+39 | AG60: 1.16301782e+39 | AH60: 1.16301782e+39 | AI60: 1.16301782e+39 | AJ60: 1.16301782e+39 | AK60: 1.16301782e+39 | AL60: 1.16301782e+39 | AM60: 1.16301782e+39 | AN60: 1.16301782e+39 | AO60: 1.16301782e+39 | AP60: 1.16301782e+39 | AQ60: 1.16301782e+39 | AR60: 1.16301782e+39 | AS60: 1.16301782e+39 | AT60: 1.16301782e+39 | AU60: 1.16301782e+39 | AV60: 1.16301782e+39 | AW60: 1.16301782e+39 | AX60: 1.16301782e+39 | AY60: 1.16301782e+39 | AZ60: 1.16301782e+39 | BA60: 1.16301782e+39 | BB60: 1.16301782e+39 | BC60: 1.16301782e+39 | BD60: 1.16301782e+39
C61: Net Plant Depreciation Rate (Interpolate) | G61: =interpolate_look_up(G2,36:36,39:39) -> 0.102869371 | H61: =interpolate_look_up(H2,36:36,39:39) -> 0.1041698899 | I61: 0.1054868506 | J61: 0.1068204608 | K61: 0.108170931 | L61: 0.1095384746 | M61: 0.1109233071 | N61: 0.1123256474 | O61: 0.1123256474 | P61: 0.1123256474 | Q61: 0.1123256474 | R61: 0.1123256474 | S61: 0.1123256474 | T61: 0.1123256474 | U61: 0.1123256474 | V61: 0.1123256474 | W61: 0.1123256474 | X61: 0.1123256474 | Y61: 0.1123256474 | Z61: 0.1123256474 | AA61: 0.1123256474 | AB61: 1.110409641e-12 | AC61: 1.110409641e-12 | AD61: 1.110409641e-12 | AE61: 1.110409641e-12 | AF61: 1.110409641e-12 | AG61: 1.110409641e-12 | AH61: 1.110409641e-12 | AI61: 1.110409641e-12 | AJ61: 1.110409641e-12 | AK61: 1.110409641e-12 | AL61: 1.110409641e-12 | AM61: 1.110409641e-12 | AN61: 1.110409641e-12 | AO61: 1.110409641e-12 | AP61: 1.110409641e-12 | AQ61: 1.110409641e-12 | AR61: 1.110409641e-12 | AS61: 1.110409641e-12 | AT61: 1.110409641e-12 | AU61: 1.110409641e-12 | AV61: 1.110409641e-12 | AW61: 1.110409641e-12 | AX61: 1.110409641e-12 | AY61: 1.110409641e-12 | AZ61: 1.110409641e-12 | BA61: 1.110409641e-12 | BB61: 1.110409641e-12 | BC61: 1.110409641e-12 | BD61: 1.110409641e-12
A63: NOPAT and Free Cash Flow
B64: Plant Balance
C65: Opening Balance | G65: =F68 -> 1120197 | H65: =G68 -> 1232216.7 | I65: =H68 -> 1345999.204 | J65: 1460223.801 | K65: 1573480.804 | L65: 1684302.165 | M65: 1791194.955 | N65: 1892676.562 | O65: 1987310.39 | P65: 2086675.91 | Q65: 2191009.705 | R65: 2300560.19 | S65: 2415588.2 | T65: 2536367.61 | U65: 2663185.99 | V65: 2796345.29 | W65: 2936162.554 | X65: 3082970.682 | Y65: 3237119.216 | Z65: 3398975.177 | AA65: 3568923.936
C66: Add: Capital Expenditures | G66: =G67*G60 -> 227253.6608 | H66: 242142.382 | I66: 256209.8135 | J66: 269238.7821 | K66: 281026.2451 | L66: 291388.6799 | M66: 300166.8749 | N66: 307229.9482 | O66: 322591.4456 | P66: 338721.0179 | Q66: 355657.0687 | R66: 373439.9222 | S66: 392111.9183 | T66: 411717.5142 | U66: 432303.3899 | V66: 453918.5594 | W66: 476614.4874 | X66: 500445.2118 | Y66: 525467.4723 | Z66: 551740.846 | AA66: 579327.8883
C67: Less: Depreciation | G67: =G65*G61 -> 115233.9608 | H67: 128359.878 | I67: 141985.2169 | J67: 155981.7792 | K67: 170204.8835 | L67: 184495.8899 | M67: 198685.2681 | N67: 212596.1201 | O67: 223225.9261 | P67: 234387.2224 | Q67: 246106.5835 | R67: 258411.9127 | S67: 271332.5083 | T67: 284899.1337 | U67: 299144.0904 | V67: 314101.2949 | W67: 329806.3597 | X67: 346296.6777 | Y67: 363611.5115 | Z67: 381792.0871 | AA67: 400881.6915
C68: Closing Plant Balance | F68: =E23 -> 1120197 | G68: =G65+G66-G67 -> 1232216.7 | H68: =H65+H66-H67 -> 1345999.204 | I68: 1460223.801 | J68: 1573480.804 | K68: 1684302.165 | L68: 1791194.955 | M68: 1892676.562 | N68: 1987310.39 | O68: 2086675.91 | P68: 2191009.705 | Q68: 2300560.19 | R68: 2415588.2 | S68: 2536367.61 | T68: 2663185.99 | U68: 2796345.29 | V68: 2936162.554 | W68: 3082970.682 | X68: 3237119.216 | Y68: 3398975.177 | Z68: 3568923.936 | AA68: 3747370.132
C70: WC and Other as Pct of Plant | E70: =F24 -> 0.4746584753 | G70: =$E$70 -> 0.4746584753 | H70: =$E$70 -> 0.4746584753 | I70: 0.4746584753 | J70: 0.4746584753 | K70: 0.4746584753 | L70: 0.4746584753 | M70: 0.4746584753 | N70: 0.4746584753 | O70: 0.4746584753 | P70: 0.4746584753 | Q70: 0.4746584753 | R70: 0.4746584753 | S70: 0.4746584753 | T70: 0.4746584753 | U70: 0.4746584753 | V70: 0.4746584753 | W70: 0.4746584753 | X70: 0.4746584753 | Y70: 0.4746584753 | Z70: 0.4746584753 | AA70: 0.4746584753
C71: WC and Other Balance Closing | F71: =E24 -> 531711 | G71: =G70*G68 -> 584882.1 | H71: 638889.9299 | I71: 693107.6027 | J71: 746865.999 | K71: 799468.2976 | L71: 850205.8663 | M71: 898374.971 | N71: 943293.7196 | O71: 990458.4056 | P71: 1039981.326 | Q71: 1091980.392 | R71: 1146579.412 | S71: 1203908.382 | T71: 1264103.801 | U71: 1327308.992 | V71: 1393674.441 | W71: 1463358.163 | X71: 1536526.071 | Y71: 1613352.375 | Z71: 1694019.994 | AA71: 1778720.993
C72: Change in WC and Other | G72: =G71-F71 -> 53171.1 | H72: =H71-G71 -> 54007.82987 | I72: 54217.67286 | J72: 53758.39631 | K72: 52602.29853 | L72: 50737.56874 | M72: 48169.10472 | N72: 44918.74855 | O72: 47164.68598 | P72: 49522.92028 | Q72: 51999.06629 | R72: 54599.01961 | S72: 57328.97059 | T72: 60195.41912 | U72: 63205.19007 | V72: 66365.44958 | W72: 69683.72205 | X72: 73167.90816 | Y72: 76826.30356 | Z72: 80667.61874 | AA72: 84700.99968
C74: Invested Capital Including WC and Other | F74: =E25 -> 1651908 | G74: =G65+F71 -> 1651908 | H74: =H65+G71 -> 1817098.8 | I74: 1984889.134 | J74: 2153331.403 | K74: 2320346.803 | L74: 2483770.463 | M74: 2641400.822 | N74: 2791051.533 | O74: 2930604.11 | P74: 3077134.315 | Q74: 3230991.031 | R74: 3392540.582 | S74: 3562167.611 | T74: 3740275.992 | U74: 3927289.792 | V74: 4123654.281 | W74: 4329836.995 | X74: 4546328.845 | Y74: 4773645.287 | Z74: 5012327.552 | AA74: 5262943.929
C76: ROIC on Opening Investment | G76: =interpolate_look_up(G2,11:11,13:13) -> 0.3012274291 | H76: 0.2744209491 | I76: 0.25 | J76: 0.25 | K76: 0.25 | L76: 0.25 | M76: 0.25 | N76: 0.25 | O76: 0.25 | P76: 0.25 | Q76: 0.25 | R76: 0.25 | S76: 0.25 | T76: 0.25 | U76: 0.25 | V76: 0.25 | W76: 0.25 | X76: 0.25 | Y76: 0.25 | Z76: 0.25 | AA76: 0.25
C78: NOPAT | G78: =G76*G74 -> 497600 | H78: =H76*H74 -> 498649.9772 | I78: 496222.2835 | J78: 538332.8508 | K78: 580086.7006 | L78: 620942.6157 | M78: 660350.2054 | N78: 697762.8832 | O78: 732651.0274 | P78: 769283.5788 | Q78: 807747.7577 | R78: 848135.1456 | S78: 890541.9029 | T78: 935068.998 | U78: 981822.4479 | V78: 1030913.57 | W78: 1082459.249 | X78: 1136582.211 | Y78: 1193411.322 | Z78: 1253081.888 | AA78: 1315735.982
C79: Tax Rate | E79: =E19 -> 0.2 | G79: =$E$79 -> 0.2 | H79: =$E$79 -> 0.2 | I79: 0.2 | J79: 0.2 | K79: 0.2 | L79: 0.2 | M79: 0.2 | N79: 0.2 | O79: 0.2 | P79: 0.2 | Q79: 0.2 | R79: 0.2 | S79: 0.2 | T79: 0.2 | U79: 0.2 | V79: 0.2 | W79: 0.2 | X79: 0.2 | Y79: 0.2 | Z79: 0.2 | AA79: 0.2
C80: EBIT =NOPAT/(1-t) | G80: =G78/(1-G79) -> 622000 | H80: =H78/(1-H79) -> 623312.4715 | I80: 620277.8543 | J80: 672916.0636 | K80: 725108.3758 | L80: 776178.2696 | M80: 825437.7567 | N80: 872203.604 | O80: 915813.7843 | P80: 961604.4735 | Q80: 1009684.697 | R80: 1060168.932 | S80: 1113177.379 | T80: 1168836.248 | U80: 1227278.06 | V80: 1288641.963 | W80: 1353074.061 | X80: 1420727.764 | Y80: 1491764.152 | Z80: 1566352.36 | AA80: 1644669.978
C81: Add: Depreciation | G81: =G67 -> 115233.9608 | H81: 128359.878 | I81: 141985.2169 | J81: 155981.7792 | K81: 170204.8835 | L81: 184495.8899 | M81: 198685.2681 | N81: 212596.1201 | O81: 223225.9261 | P81: 234387.2224 | Q81: 246106.5835 | R81: 258411.9127 | S81: 271332.5083 | T81: 284899.1337 | U81: 299144.0904 | V81: 314101.2949 | W81: 329806.3597 | X81: 346296.6777 | Y81: 363611.5115 | Z81: 381792.0871 | AA81: 400881.6915
C82: EBITDA | G82: =G78+G81 -> 612833.9608 | H82: 627009.8552 | I82: 638207.5004 | J82: 694314.63 | K82: 750291.5841 | L82: 805438.5055 | M82: 859035.4735 | N82: 910359.0033 | O82: 955876.9535 | P82: 1003670.801 | Q82: 1053854.341 | R82: 1106547.058 | S82: 1161874.411 | T82: 1219968.132 | U82: 1280966.538 | V82: 1345014.865 | W82: 1412265.609 | X82: 1482878.889 | Y82: 1557022.833 | Z82: 1634873.975 | AA82: 1716617.674
C83: Less: Cap Exp | G83: =G66 -> 227253.6608 | H83: 242142.382 | I83: 256209.8135 | J83: 269238.7821 | K83: 281026.2451 | L83: 291388.6799 | M83: 300166.8749 | N83: 307229.9482 | O83: 322591.4456 | P83: 338721.0179 | Q83: 355657.0687 | R83: 373439.9222 | S83: 392111.9183 | T83: 411717.5142 | U83: 432303.3899 | V83: 453918.5594 | W83: 476614.4874 | X83: 500445.2118 | Y83: 525467.4723 | Z83: 551740.846 | AA83: 579327.8883
C84: Less: Change in WC | G84: =G72 -> 53171.1 | H84: =H72 -> 54007.82987 | I84: 54217.67286 | J84: 53758.39631 | K84: 52602.29853 | L84: 50737.56874 | M84: 48169.10472 | N84: 44918.74855 | O84: 47164.68598 | P84: 49522.92028 | Q84: 51999.06629 | R84: 54599.01961 | S84: 57328.97059 | T84: 60195.41912 | U84: 63205.19007 | V84: 66365.44958 | W84: 69683.72205 | X84: 73167.90816 | Y84: 76826.30356 | Z84: 80667.61874 | AA84: 84700.99968
C85: Less: Taxes on EBIT | G85: =G80*G79 -> 124400 | H85: =H80*H79 -> 124662.4943 | I85: 124055.5709 | J85: 134583.2127 | K85: 145021.6752 | L85: 155235.6539 | M85: 165087.5513 | N85: 174440.7208 | O85: 183162.7569 | P85: 192320.8947 | Q85: 201936.9394 | R85: 212033.7864 | S85: 222635.4757 | T85: 233767.2495 | U85: 245455.612 | V85: 257728.3926 | W85: 270614.8122 | X85: 284145.5528 | Y85: 298352.8305 | Z85: 313270.472 | AA85: 328933.9956
C86: FCF | G86: =G82-G83-G84-G85 -> 208009.2 | H86: =H82-H83-H84-H85 -> 206197.149 | I86: 203724.4431 | J86: 236734.2389 | K86: 271641.3654 | L86: 308076.603 | M86: 345611.9426 | N86: 383769.5858 | O86: 402958.0651 | P86: 423105.9683 | Q86: 444261.2667 | R86: 466474.3301 | S86: 489798.0466 | T86: 514287.9489 | U86: 540002.3464 | V86: 567002.4637 | W86: 595352.5869 | X86: 625120.2162 | Y86: 656376.227 | Z86: 689195.0384 | AA86: 723654.7903
C88: FCF Growth | H88: =H86/G86-1 -> -0.008711398208 | I88: =I86/H86-1 -> -0.01199194994 | J88: 0.1620315916 | K88: 0.1474528002 | L88: 0.1341299311 | M88: 0.1218376834 | N88: 0.110406032 | O88: 0.05 | P88: 0.05 | Q88: 0.05 | R88: 0.05 | S88: 0.05 | T88: 0.05 | U88: 0.05 | V88: 0.05 | W88: 0.05 | X88: 0.05 | Y88: 0.05 | Z88: 0.05 | AA88: 0.05
C89: NOPAT Growth | H89: =H78/G78-1 -> 0.002110082859 | I89: -0.004868532774 | J89: 0.08486230621 | K89: 0.07756140042 | L89: 0.07043070456 | M89: 0.06346414098 | N89: 0.05665581317 | O89: 0.05 | P89: 0.05 | Q89: 0.05 | R89: 0.05 | S89: 0.05 | T89: 0.05 | U89: 0.05 | V89: 0.05 | W89: 0.05 | X89: 0.05 | Y89: 0.05 | Z89: 0.05 | AA89: 0.05
C90: Investment Growth | H90: =H68/G68-1 -> 0.0923396867 | I90: 0.08486230621 | J90: 0.07756140042 | K90: 0.07043070456 | L90: 0.06346414098 | M90: 0.05665581317 | N90: 0.05 | O90: 0.05 | P90: 0.05 | Q90: 0.05 | R90: 0.05 | S90: 0.05 | T90: 0.05 | U90: 0.05 | V90: 0.05 | W90: 0.05 | X90: 0.05 | Y90: 0.05 | Z90: 0.05 | AA90: 0.05
C91: Cap Exp Growth | H91: =H66/G66-1 -> 0.06551586964 | I91: 0.0580957011 | J91: 0.05085273058 | K91: 0.04378070242 | L91: 0.03687354823 | M91: 0.03012538091 | N91: 0.0235304888 | O91: 0.05 | P91: 0.05 | Q91: 0.05 | R91: 0.05 | S91: 0.05 | T91: 0.05 | U91: 0.05 | V91: 0.05 | W91: 0.05 | X91: 0.05 | Y91: 0.05 | Z91: 0.05 | AA91: 0.05
C92: Working Capital Growth | H92: =H71/G71-1 -> 0.0923396867 | I92: =I71/H71-1 -> 0.08486230621 | J92: 0.07756140042 | K92: 0.07043070456 | L92: 0.06346414098 | M92: 0.05665581317 | N92: 0.05 | O92: 0.05 | P92: 0.05 | Q92: 0.05 | R92: 0.05 | S92: 0.05 | T92: 0.05 | U92: 0.05 | V92: 0.05 | W92: 0.05 | X92: 0.05 | Y92: 0.05 | Z92: 0.05 | AA92: 0.05
B94: Valuation
C95: Period | G95: 1 | H95: 2 | I95: 3 | J95: 4 | K95: 5 | L95: 6 | M95: 7 | N95: 8 | O95: 9 | P95: 10 | Q95: 11 | R95: 12 | S95: 13 | T95: 14 | U95: 15 | V95: 16 | W95: 17 | X95: 18 | Y95: 19 | Z95: 20 | AA95: 21
C96: PV Factor End of Year | E96: =F14 -> 0.09 | G96: =1/(1+$E$96)^G95 -> 0.9174311927 | H96: =1/(1+$E$96)^H95 -> 0.8416799933 | I96: 0.7721834801 | J96: 0.7084252111 | K96: 0.6499313863 | L96: 0.5962673269 | M96: 0.5470342448 | N96: 0.5018662797 | O96: 0.4604277795 | P96: 0.4224108069 | Q96: 0.3875328504 | R96: 0.3555347251 | S96: 0.3261786469 | T96: 0.299246465 | U96: 0.2745380413 | V96: 0.2518697627 | W96: 0.2310731768 | X96: 0.2119937402 | Y96: 0.1944896699 | Z96: 0.1784308898 | AA96: 0.163698064
C97: PV of Cash Flow Over Explicit Period | E97: =SUMPRODUCT(G96:AA96*G86:AA86*G3:AA3) -> 3259031.561
C98: PV of Explicit Cash Flow with Half Year Adj | E98: =E97*(1+E96)^part_yr_fac -> 3402528.842
B100: Value Driver with Terminal Value with Book Value
C101: BV Terminal | E101: =SUMIF(2:2,F3+1,74:74) -> 5262943.929
C102: Terminal ROIC | E102: =LOOKUP(F3+1,11:11,13:13) -> 0.25
C103: Terminal Growth | E103: =LOOKUP(F3+1,11:11,15:15) -> 0.05
C104: Value Driver Formula from BV x ROIC | E104: =E101*E102*(1-E103/E102)/(E96-E103) -> 26314719.65
C105: PV Factor | E105: =LOOKUP(F3,2:2,96:96) -> 0.1784308898
C106: PV of Terminal EV | E106: =E104*E105*(1+E96)^part_yr_fac -> 4902098.547
C108: Total Enterprise Value with Explicit CF | E108: =E106+E98 -> 8304627.389
B110: Value Driver with Terminal NOPAT
C111: NOPAT in Terminal Year | E111: =LOOKUP(F3,2:2,78:78) -> 1253081.888
C112: Terminal Growth | E112: =E103 -> 0.05
C113: NOPAT with Growth | E113: =E111*(1+E112) -> 1315735.982
C114: Value Driver Formula from NOPAT | E114: =E113*(1-E112/E102)/(E96-E112) -> 26314719.65
C115: PV Factor | E115: =E105 -> 0.1784308898
C116: PV of Terminal Value | E116: =E115*E114*(1+E96)^part_yr_fac -> 4902098.547
C118: Total Enterprise Value | E118: =E116+E98 -> 8304627.389

Sheet 2004-2014 Financial Statements
I1: 2004 | J1: 2005 | K1: 2006 | L1: 2007 | M1: 2008 | N1: 2009 | O1: 2010 | P1: 2011 | Q1: 2012 | R1: 2013 | S1: 2014
B2: Historic Financial Statements
C3: Profit and Loss
D4: Net sales . . . . . . . . . . . . . . . . . . . . | I4: 13522 | J4: 48063 | K4: 134974 | L4: 503976 | M4: 1246301 | N4: 2066200 | O4: 2563515 | P4: 2766207 | Q4: 3368545 | R4: 3308989 | S4: 3391814
D5: Cost of sales . . . . . . . . . . . . . . . . . . | I5: 18851 | J5: 31483 | K5: 80730 | L5: 252573 | M5: 567908 | N5: 1021618 | O5: 1378669 | P5: 1794456 | Q5: 2515796 | R5: 2446235 | S5: 2564709
D6: Gross profit . . . . . . . . . . . . . . . . . . | I6: -5329 | J6: 16580 | K6: 54244 | L6: 251403 | M6: 678393 | N6: 1044582 | O6: 1184846 | P6: 971751 | Q6: 852749 | R6: 862754 | S6: 827105
D7: Operating expenses:
D8: Research and development . . . . . . . . . . . . | I8: 1240 | J8: 2372 | K8: 6361 | L8: 15107 | M8: 33517 | N8: 78161 | O8: 94797 | P8: 140523 | Q8: 132460 | R8: 134300 | S8: 143969
D9: Selling, general and administrative . . . . . . . | I9: 9312 | J9: 15825 | K9: 33348 | L9: 82248 | M9: 174039 | N9: 272898 | O9: 321704 | P9: 412541 | Q9: 280928 | R9: 270261 | S9: 253827
D10: Production start-up . . . . . . . . . . . . . . . | I10: 900 | J10: 3173 | K10: 11725 | L10: 16867 | M10: 32498 | N10: 13908 | O10: 19442 | P10: 33620 | Q10: 7823 | R10: 2768 | S10: 5146
D11: Restructuring and asset impairments . . . . . . . | I11: 0 | J11: 0 | K11: 0 | L11: 0 | M11: 0 | N11: 0 | O11: 0 | P11: 60366 | Q11: 469101 | R11: 86896 | S11: 0
D12: Goodwill impairment . . . . . . . . . . . . . . . | I12: 0 | J12: 0 | K12: 0 | L12: 0 | M12: 0 | N12: 0 | O12: 0 | P12: 393365
D13: Total operating expenses . . . . . . . . . . . . | I13: 11452 | J13: 21370 | K13: 51434 | L13: 114222 | M13: 240054 | N13: 364967 | O13: 435943 | P13: 1040415 | Q13: 890312 | R13: 494225 | S13: 402942
D15: Operating income (loss) . . . . . . . . . . . . . | I15: -16781 | J15: -4790 | K15: 2810 | L15: 137181 | M15: 438339 | N15: 679615 | O15: 748903 | P15: -68664 | Q15: -37563 | R15: 368529 | S15: 424163
D17: Foreign currency loss, net . . . . . . . . . . . | I17: 116 | J17: -1715 | K17: 0 | L17: 0 | M17: 0 | N17: 0 | O17: 0 | P17: 0 | Q17: -2122 | R17: -259 | S17: -3017
D18: Interest income . . . . . . . . . . . . . . . . . | I18: 0 | J18: 0 | K18: 2648 | L18: 20413 | M18: 21158 | N18: 9735 | O18: 14375 | P18: 13391 | Q18: 12824 | R18: 16752 | S18: 18030
D19: Interest expense, net . . . . . . . . . . . . . . | I19: -100 | J19: -418 | K19: -1023 | L19: -2294 | M19: -509 | N19: -5258 | O19: -6 | P19: -100 | Q19: -13888 | R19: -1884 | S19: -1982
D20: Other (expense) income, net . . . . . . . . . . . | I20: -6 | J20: 372 | K20: -799 | L20: -1219 | M20: -934 | N20: -2985 | O20: 2273 | P20: 665 | Q20: 945 | R20: -4758 | S20: -5203
D21: Income (loss) before taxes and equity in earnings | I21: -16771 | J21: -6551 | K21: 9180 | L21: 155962 | M21: 463776 | N21: 686314 | O21: 762077 | P21: -53713 | Q21: -39804 | R21: 378380 | S21: 431991
D23: Income tax expense . . . . . . . . . . . . . . . | I23: 0 | J23: 0 | K23: -5206 | L23: 2392 | M23: -115446 | N23: -46176 | O23: -97876 | P23: 14220 | Q23: -56534 | R23: -25179 | S23: -30124
D24: Equity in earnings of unconsolidated affiliates, | I24: 0 | J24: 89 | K24: 0 | L24: 0 | M24: 0 | N24: 0 | O24: 0 | P24: 0 | Q24: 0 | R24: -163 | S24: -4949
D25: Net income (loss) . . . . . . . . . . . . . . . . | I25: -16771 | J25: -6462 | K25: 3974 | L25: 158354 | M25: 348330 | N25: 640138 | O25: 664201 | P25: -39493 | Q25: -96338 | R25: 353038 | S25: 396918
D27: Net income (loss) per share: | I27: 0 | J27: 0 | K27: 0 | L27: 0 | M27: 0 | N27: 0 | O27: 0 | P27: 0 | Q27: 0 | R27: 0 | S27: 0
D28: Basic . . . . . . . . . . . . . . . . . . . . . . | K28: 0.07 | L28: 2.12 | M28: 4.34 | N28: 7.67 | O28: 7.82 | P28: -0.46 | Q28: -1.11 | R28: 3.77 | S28: 3.97
D29: Diluted . . . . . . . . . . . . . . . . . . . . . | K29: 0.07 | L29: 2.03 | M29: 4.24 | N29: 7.53 | O29: 7.68 | P29: -0.46 | Q29: -1.11 | R29: 3.7 | S29: 3.91
D30: Basic . . . . . . . . . . . . . . . . . . . . . . | K30: 56771.42857 | L30: 74695.28302 | M30: 80260.36866 | N30: 83459.97392 | O30: 84936.18926 | P30: 85854.34783 | Q30: 86790.99099 | R30: 93644.03183 | S30: 99979.34509
D31: Diluted . . . . . . . . . . . . . . . . . . . . . | K31: 56771.42857 | L31: 78006.89655 | M31: 82153.30189 | N31: 85011.68659 | O31: 86484.50521 | P31: 85854.34783 | Q31: 86790.99099 | R31: 95415.67568 | S31: 101513.555
K32: 0 | L32: 0 | M32: 0 | N32: 0 | O32: 0 | P32: 0 | Q32: 0 | R32: 0 | S32: 0
D33: Depreciation and amortization . . . . . . . . . . . . . . . | I33: 1944 | J33: 3376 | K33: 10210 | L33: 24481 | M33: 59518 | N33: 129628 | O33: 156093 | P33: 235231 | Q33: 262716 | R33: 234370 | S33: 245798
D35: Capital Expenditures | I35: 7733 | J35: 42481 | K35: 153150 | L35: 242371 | M35: 459271 | N35: 279941 | O35: 588914 | P35: 731814 | Q35: 379228 | R35: 282576 | S35: 257549
D36: Cap Exp/Depreciation | I36: 3.977880658 | J36: 12.5832346 | K36: 15 | L36: 9.900371717 | M36: 7.716505931 | N36: 2.159572006 | O36: 3.77284055 | P36: 3.111044038 | Q36: 1.443490309 | R36: 1.205683321 | S36: 1.047807549
B38: Balance Sheet | E38: Assets & | F38: Net Finance
B39: ASSETS | E39: Liab Assoc | F39: and Other | G39: Working | H39: EV to Equity
C40: Current assets: | E40: with EBIT | F40: with EBIT | G40: Capital | H40: Bridge
D41: Cash and cash equivalents . . . . . . . . . . . . | F41: -1 | H41: -1 | J41: 16721 | K41: 308092 | L41: 404264 | M41: 716218 | N41: 664499 | O41: 765689 | P41: 605619 | Q41: 901294 | R41: 1325072 | S41: 1482054
D42: Marketable securities . . . . . . . . . . . . . . | F42: -1 | H42: -1 | J42: 312 | K42: 323 | L42: 232686 | M42: 76042 | N42: 120236 | O42: 167889 | P42: 66146 | Q42: 102578 | R42: 439102 | S42: 509032
D43: Accounts receivable trade, net . . . . . . . . . | E43: 1 | G43: 1 | J43: 1098 | K43: 27966 | L43: 18165 | M43: 61703 | N43: 226826 | O43: 305537 | P43: 310568 | Q43: 553567 | R43: 136383 | S43: 135434
D44: Accounts receivable, unbilled and retainage . . . | E44: 1 | G44: 1 | J44: 0 | K44: 0 | L44: 0 | M44: 0 | N44: 0 | O44: 0 | P44: 0 | Q44: 400987 | R44: 521323 | S44: 76971
D45: Accounts receivable, unbilled . . . . . . . . . . | E45: 1 | G45: 1 | J45: 0 | K45: 0 | L45: 0 | M45: 0 | N45: 58 | O45: 1482 | P45: 533399 | Q45: 0
D46: Inventories . . . . . . . . . . . . . . . . . . . | E46: 1 | G46: 1 | J46: 6917 | K46: 16510 | L46: 40204 | M46: 121554 | N46: 152821 | O46: 200442 | P46: 475867 | Q46: 434921 | R46: 388951 | S46: 505088
D47: Balance of systems parts . . . . . . . . . . . . | E47: 1 | G47: 1 | J47: 0 | K47: 0 | L47: 0 | M47: 0 | N47: 0 | O47: 0 | P47: 53784 | Q47: 98903 | R47: 133731 | S47: 125083
D48: Deferred project costs . . . . . . . . . . . . . | E48: 1 | G48: 1 | J48: 0 | K48: 0 | L48: 2643 | M48: 0 | N48: 1081 | O48: 0 | P48: 0 | Q48: 21390 | R48: 556957 | S48: 29354
D49: Economic development funding receivable . . . . . | E49: 1 | G49: 1 | J49: 0 | K49: 27515 | L49: 35877 | M49: 0 | N49: 0 | O49: 0 | P49: 0 | Q49: 0
D50: Deferred tax assets, net . . . . . . . . . . . . | E50: 1 | G50: 1 | J50: 0 | K50: 0 | L50: 3890 | M50: 9922 | N50: 21679 | O50: 388 | P50: 41144 | Q50: 44070 | R50: 63899 | S50: 91565
D51: Assets held for sale . . . . . . . . . . . . . . | F51: -1 | H51: -1 | J51: 0 | K51: 0 | L51: 0 | M51: 0 | N51: 0 | O51: 0 | P51: 0 | Q51: 49521 | R51: 132626 | S51: 20728
D52: Notes receivable, affiliate . . . . . . . . . . . | F52: -1 | H52: -1 | J52: 0 | K52: 0 | L52: 0 | M52: 0 | N52: 0 | O52: 0 | P52: 0 | Q52: 17725 | R52: 0 | S52: 12487
D53: Prepaid expenses and other current assets . . . . | E53: 1 | G53: 1 | J53: 1505 | K53: 8116 | L53: 64780 | M53: 91962 | N53: 164071 | O53: 143033 | P53: 526734 | Q53: 207368 | R53: 94720 | S53: 202670
D54: Total current assets . . . . . . . . . . . . . . | J54: =SUM(J41:J53) -> 26553 | K54: =SUM(K41:K53) -> 388522 | L54: 802509 | M54: 1077401 | N54: 1351271 | O54: 1584460 | P54: 2613261 | Q54: 2832324 | R54: 3792764 | S54: 3190466
D56: Property, plant and equipment, net . . . . . . . | E56: 1 | J56: 73778 | K56: 178868 | L56: 430104 | M56: 842622 | N56: 988782 | O56: 1430789 | P56: 1815958 | Q56: 1525382 | R56: 1385084 | S56: 1402304
D57: PV solar power systems, net . . . . . . . . . . . | E57: 1 | J57: 0 | K57: 0 | L57: 0 | M57: 0 | N57: 0 | O57: 0 | P57: 0 | Q57: 0 | R57: 0 | S57: 46393
D58: Project assets and deferred project costs . . . . | E58: 1 | J58: 0 | K58: 0 | L58: 0 | M58: 0 | N58: 131415 | O58: 320140 | P58: 374881 | Q58: 845478 | R58: 720916 | S58: 810348
D59: Deferred tax assets, net LT. . . . . . . . . . . . | E59: 1 | G59: 1 | J59: 0 | K59: 0 | L59: 51811 | M59: 61325 | N59: 130515 | O59: 259236 | P59: 340274 | Q59: 317473 | R59: 296603 | S59: 222326
D60: Restricted cash and investments . . . . . . . . . | F60: -1 | H60: -1 | J60: 1267 | K60: 8224 | L60: 14695 | M60: 30059 | N60: 36494 | O60: 86003 | P60: 200550 | Q60: 301400 | R60: 279441 | S60: 407053
D61: Investment in related party . . . . . . . . . . . | F61: -1 | H61: -1 | J61: 0 | K61: 0 | L61: 0 | M61: 25000 | N61: 25000 | O61: 0 | P61: 0 | Q61: 0
D62: Investments in unconsolidated affiliates and join | F62: -1 | H62: -1 | J62: 0 | K62: 0 | L62: 0 | M62: 0 | N62: 0 | O62: 0 | P62: 0 | Q62: 0 | R62: 17321 | S62: 255029
D63: Goodwill . . . . . . . . . . . . . . . . . . . . | E63: 1 | G63: 1 | J63: 0 | K63: 0 | L63: 33449 | M63: 33829 | N63: 286515 | O63: 433288 | P63: 65444 | Q63: 65444 | R63: 84985 | S63: 84985
D64: Other intangibles, net . . . . . . . . . . . . . | E64: 1 | G64: 1 | J64: 0 | K64: 0 | L64: 0 | M64: 0 | N64: 0 | O64: 0 | P64: 0 | Q64: 0 | R64: 117416 | S64: 119236
D65: Inventories LT. . . . . . . . . . . . . . . . . . . | E65: 1 | G65: 1 | J65: 0 | K65: 0 | L65: 0 | M65: 0 | N65: 21695 | O65: 42728 | P65: 60751 | Q65: 134375 | R65: 129664 | S65: 115617
D66: Retainage . . . . . . . . . . . . . . . . . . . . | E66: 1 | G66: 1 | J66: 0 | K66: 0 | L66: 0 | M66: 0 | N66: 0 | O66: 0 | P66: 0 | Q66: 270364
D67: Note receivable, affiliate . . . . . . . . . . . | F67: -1 | H67: -1 | J67: 0 | K67: 0 | L67: 0 | M67: 0 | N67: 0 | O67: 0 | P67: 0 | Q67: 0 | R67: 0 | S67: 9127
D68: Marketable securities LT. . . . . . . . . . . . . . | F68: -1 | H68: -1 | J68: 0 | K68: 0 | L68: 32713 | M68: 29559 | N68: 329608 | O68: 180271 | P68: 116192 | Q68: 0
D69: Other assets . . . . . . . . . . . . . . . . . . | E69: 1 | G69: 1 | J69: 286 | K69: 2896 | L69: 6031 | M69: 14707 | N69: 48217 | O69: 43488 | P69: 190303 | Q69: 56452 | R69: 59308 | S69: 61555
D70: Total assets . . . . . . . . . . . . . . . . . . | J70: =SUM(J54:J69) -> 101884 | K70: =SUM(K54:K69) -> 578510 | L70: 1371312 | M70: 2114502 | N70: 3349512 | O70: 4380403 | P70: 5777614 | Q70: 6348692 | R70: 6883502 | S70: 6724439
C73: LIABILITIES AND STOCKHOLDERS’ EQUITY
D74: Current liabilities: | J74: 0 | K74: 0 | L74: 0 | M74: 0 | N74: 0 | O74: 0 | P74: 0 | Q74: 0 | R74: 0 | S74: 0
D75: Accounts payable . . . . . . . . . . . . . . . . | E75: -1 | G75: -1 | J75: 13771 | K75: 32083 | L75: 132366 | M75: 46251 | N75: 75744 | O75: 82312 | P75: 176448 | Q75: 350230 | R75: 261333 | S75: 214656
D76: Income taxes payable . . . . . . . . . . . . . . | E76: -1 | G76: -1 | J76: 0 | K76: 0 | L76: 0 | M76: 99938 | N76: 8740 | O76: 16831 | P76: 9541 | Q76: 5474 | R76: 6707 | S76: 1727
D77: Accrued expenses . . . . . . . . . . . . . . . . | E77: -1 | G77: -1 | J77: 0 | K77: 0 | L77: 0 | M77: 140899 | N77: 193277 | O77: 244271 | P77: 406659 | Q77: 554433 | R77: 320077 | S77: 388156
D78: Short-term debt . . . . . . . . . . . . . . . . . | F78: 1 | H78: 1 | J78: 0 | K78: 16339 | L78: 24473 | M78: 0 | N78: 0 | O78: 0 | P78: 0 | Q78: 0
D79: Note payable to a related party . . . . . . . . . | F79: 1 | H79: 1 | J79: 20000 | K79: 0 | L79: 0 | M79: 0 | N79: 0 | O79: 0 | P79: 0 | Q79: 0
D80: Current portion of long-term debt . . . . . . . . | F80: 1 | H80: 1 | J80: 142 | K80: 3311 | L80: 14836 | M80: 34951 | N80: 28559 | O80: 26587 | P80: 44505 | Q80: 62349 | R80: 60543 | S80: 51918
D81: Billings in excess of costs and estimated earning | E81: -1 | G81: -1 | J81: 0 | K81: 0 | L81: 0 | M81: 0 | N81: 0 | O81: 0 | P81: 0 | Q81: 0 | R81: 117766 | S81: 195346
D82: Payments and billings for deferred project costs | E82: -1 | G82: -1 | J82: 0 | K82: 0 | L82: 0 | M82: 0 | N82: 0 | O82: 0 | P82: 0 | Q82: 94535 | R82: 642214 | S82: 60591
D83: Other current liabilities . . . . . . . . . . . . | E83: -1 | G83: -1 | J83: 0 | K83: 340 | L83: 14803 | M83: 59738 | N83: 88607 | O83: 99676 | P83: 336571 | Q83: 34353 | R83: 179421 | S83: 88702
D84: Total current liabilities . . . . . . . . . . . . | J84: =SUM(J74:J83) -> 33913 | K84: =SUM(K74:K83) -> 52073 | L84: 186478 | M84: 381777 | N84: 394927 | O84: 469677 | P84: 973724 | Q84: 1101374 | R84: 1588061 | S84: 1001096
D86: Accrued solar module collection and recycling lia | E86: -1 | G86: -1 | J86: 917 | K86: 3724 | L86: 13079 | M86: 35238 | N86: 92799 | O86: 132951 | P86: 167378 | Q86: 212835 | R86: 225163 | S86: 246307
D87: Long-term debt . . . . . . . . . . . . . . . . . | F87: 1 | H87: 1 | J87: 19881 | K87: 61047 | L87: 68856 | M87: 163519 | N87: 146399 | O87: 210804 | P87: 619143 | Q87: 500223 | R87: 162780 | S87: 165003
D88: Other liabilities . . . . . . . . . . . . . . . . | E88: -1 | G88: -1 | J88: 79 | K88: 0 | L88: 5632 | M88: 20926 | N88: 62600 | O88: 112026 | P88: 373506 | Q88: 292216 | R88: 404381 | S88: 284546
D89: Payments and billings for deferred project costs LT | E89: -1 | G89: -1 | J89: 8700 | K89: 0 | L89: 0 | M89: 0 | N89: 0 | O89: 0 | P89: 0 | Q89: 636518
D90: Total liabilities . . . . . . . . . . . . . . . . | J90: =SUM(J84:J89) -> 63490 | K90: =SUM(K84:K89) -> 116844 | L90: 274045 | M90: 601460 | N90: 696725 | O90: 925458 | P90: 2133751 | Q90: 2743166 | R90: 2380385 | S90: 1696952
D92: Commitments and Contingencies | J92: 0 | K92: 0 | L92: 0 | M92: 0 | N92: 0 | O92: 0 | P92: 0 | Q92: 0 | R92: 0 | S92: 0
D93: Employee stock options on redeemable shares . . . | J93: 25265 | K93: 50226 | L93: 0 | M93: 0 | N93: 0 | O93: 0 | P93: 0 | Q93: 0
D94: Stockholders’ equity: | J94: 0 | K94: 0 | L94: 0 | M94: 0 | N94: 0 | O94: 0 | P94: 0 | Q94: 0 | R94: 0 | S94: 0
D95: Common stock, 0.001 par value per share; shares | J95: 0.001 | K95: 500000000 | L95: 0.001 | M95: 500000000 | N95: 500000000 | O95: 0.001 | P95: 500000000 | Q95: 99506941 | R95: 100288942 | S95: 500000000
D96: 99506941 shares issued and outstanding at Decembe | J96: 0 | K96: 0 | L96: 0 | M96: 0 | N96: 85208199 | O96: 85843511 | P96: 0 | Q96: 87 | R96: 100 | S96: 100
D97: Additional paid-in capital . . . . . . . . . . . | J97: 0 | K97: 555749 | L97: 1079775 | M97: 1176156 | N97: 1658091 | O97: 1815420 | P97: 2022743 | Q97: 2065527 | R97: 2646022 | S97: 2697558
D98: Accumulated earnings . . . . . . . . . . . . . . | J98: -149377 | K98: -145403 | L98: 12895 | M98: 361225 | N98: 0 | O98: 0 | P98: 1626071 | Q98: 1529733 | R98: 1882771 | S98: 2279689
D99: Accumulated other comprehensive income (loss) . . | J99: 199 | K99: 1022 | L99: 4518 | M99: -24421 | N99: 0 | O99: 0 | P99: 0 | Q99: 0 | R99: -25776 | S99: 50140
D100: Accumulated other comprehensive (loss) income . . | J100: 0 | K100: 0 | L100: 0 | M100: 0 | N100: 0 | O100: 0 | P100: 0 | Q100: 10179
D101: Total stockholders’ equity . . . . . . . . . . . | F101: 1 | J101: 38394 | K101: 461666 | L101: 1097267 | M101: 1513042 | N101: 2652787 | O101: 3454945 | P101: 3643863 | Q101: 3605526 | R101: 4503117 | S101: 5027487
D102: Total liabilities and stockholders’ equity . . . | J102: =J90+J92+J101 -> 101884 | K102: =K90+K92+K101 -> 578510 | L102: 1371312 | M102: 2114502 | N102: 3349512 | O102: 4380403 | P102: 5777614 | Q102: 6348692 | R102: 6883502 | S102: 6724439
C103: Cash Flow
D104: Net (loss) income . . . . . . . . . . . . . . . . . . . . . | I104: -16771 | J104: -6462 | K104: 3974 | L104: 158354 | M104: 348330 | N104: 640138 | O104: 664201 | P104: -39493 | Q104: -96338 | R104: 353038 | S104: 396918
D105: Adjustments to reconcile net (loss) income to cash provided | I105: 0 | J105: 0 | K105: 0 | L105: 0 | M105: 0 | N105: 0 | O105: 0 | P105: 0 | Q105: 0 | R105: 0 | S105: 0
D106: operating activities: | I106: 0 | J106: 0 | K106: 0 | L106: 0 | M106: 0 | N106: 0 | O106: 0 | P106: 0 | Q106: 0 | R106: 0 | S106: 0
D107: Depreciation and amortization . . . . . . . . . . . . . . . | I107: 1944 | J107: 3376 | K107: 10210 | L107: 24481 | M107: 59518 | N107: 129628 | O107: 156093 | P107: 235231 | Q107: 262716 | R107: 234370 | S107: 245798
D108: Impairment of assets and liabilities . . . . . . . . . . . | I108: 0 | J108: 0 | K108: 0 | L108: 0 | M108: 2328 | N108: 1118 | O108: 5692 | P108: 57414 | Q108: 356522 | R108: 97132 | S108: 5228
D109: Impairment of project assets . . . . . . . . . . . . . . . | I109: 0 | J109: 0 | K109: 0 | L109: 0 | M109: 0 | N109: 0 | O109: 5277 | P109: 7933 | Q109: 3253 | R109: 0 | S109: 433
D110: Impairment of goodwill . . . . . . . . . . . . . . . . . . | I110: 0 | J110: 0 | K110: 0 | L110: 0 | M110: 0 | N110: 0 | O110: 0 | P110: 393365 | Q110: 0 | R110: 0 | S110: 0
D111: Share-based compensation . . . . . . . . . . . . . . . . . | I111: 1143 | J111: 4797 | K111: 11897 | L111: 38965 | M111: 58944 | N111: 88745 | O111: 99622 | P111: 114428 | Q111: 36971 | R111: 55079 | S111: 43810
D112: Remeasurement of monetary assets and liabilities . . . . . | I112: 51 | J112: 90 | K112: 394 | L112: 0 | M112: 32 | N112: -2696 | O112: 625 | P112: -4701 | Q112: 8509 | R112: -15109 | S112: 8772
D113: Deferred income taxes . . . . . . . . . . . . . . . . . . . | I113: 0 | J113: 0 | K113: 0 | L113: -55881 | M113: -12974 | N113: -35029 | O113: -58040 | P113: -155505 | Q113: 14588 | R113: -20878 | S113: 14068
D114: Excess tax benefits from share-based compensation arrangeme | I114: 0 | J114: 0 | K114: 0 | L114: -30196 | M114: -28661 | N114: -4892 | O114: -69367 | P114: -110836 | Q114: -27373 | R114: -35076 | S114: -31166
D115: Inventory valuation adjustment. . . . . . . . . . . . . . . | I115: 0 | J115: 0 | K115: 0 | L115: 34 | M115: 2548 | N115: 0 | O115: 0 | P115: 0 | Q115: 0 | R115: 0 | S115: 0
D116: Provision for doubtful accounts receivable . . . . . . . . | I116: 0 | J116: 0 | K116: 0 | L116: 0 | M116: -5 | N116: 990 | O116: -990 | P116: 10761 | Q116: 4471 | R116: 2106 | S116: 0
D117: Gain on sales of marketable securities, investments, and re | I117: 0 | J117: 0 | K117: 0 | L117: 0 | M117: -189 | N117: -110 | O117: -336 | P117: 0 | Q117: 0 | R117: 0 | S117: 0
D118: investments, net . . . . . . . . . . . . . . . . . . . . . | I118: 0 | J118: 0 | K118: 0 | L118: 0 | M118: 0 | N118: 0 | O118: 0 | P118: -4581 | Q118: 0 | R118: 0 | S118: 0
D119: Gain on sale of related party equity investment . . . . . . | I119: 0 | J119: 0 | K119: 314 | L119: 321 | M119: 0 | N119: 0 | O119: -3596 | P119: 0 | Q119: 0 | R119: 0 | S119: 0
D120: Other operating activities . . . . . . . . . . . . . . . . | I120: 234 | J120: 27 | K120: 45 | L120: 0 | M120: 0 | N120: 1551 | O120: -1504 | P120: -719 | Q120: -4778 | R120: -1073 | S120: 6296
D121: Changes in operating assets and liabilities: | I121: 0 | J121: 0 | K121: 0 | L121: 0 | M121: 0 | N121: 0 | O121: 0 | P121: 0 | Q121: 0 | R121: 0 | S121: 0
D122: Project assets . . . . . . . . . . . . . . . . . . . . . . | I122: 0 | J122: 0 | K122: 0 | L122: 0 | M122: 0 | N122: 0 | O122: 0 | P122: 0 | Q122: 0 | R122: 0 | S122: 0
D123: Deferred project costs . . . . . . . . . . . . . . . . . . | I123: 0 | J123: 0 | K123: 142 | L123: 2333 | M123: 0 | N123: 0 | O123: 0 | P123: 0 | Q123: 0 | R123: 0 | S123: 0
D124: Accounts receivable, unbilled . . . . . . . . . . . . . . . | I124: 0 | J124: 0 | K124: 0 | L124: 0 | M124: -108 | N124: 56 | O124: -1424 | P124: 0 | Q124: 0 | R124: 0 | S124: 0
D125: Costs and estimated earnings in excess of billings. . . . . | I125: 0 | J125: 0 | K125: 0 | L125: 28 | M125: 0 | N125: 0 | O125: 0 | P125: 0 | Q125: 0 | R125: 0 | S125: 0
D126: Billings in excess of costs and estimated earnings . . . . | I126: 0 | J126: 0 | K126: 0 | L126: -1992 | M126: 0 | N126: 0 | O126: 0 | P126: 0 | Q126: 0 | R126: 0 | S126: 0
D127: Accounts receivable, trade and unbilled . . . . . . . . . . | I127: -2486 | J127: 3295 | K127: -28149 | L127: 10975 | M127: -40852 | N127: -153312 | O127: -90349 | P127: -529809 | Q127: -388039 | R127: 564964 | S127: 453826
D128: Prepaid expenses and other current assets . . . . . . . . . | I128: -226 | J128: -1074 | K128: -6689 | L128: -7359 | M128: -46055 | N128: -28476 | O128: -41394 | P128: -140961 | Q128: -28854 | R128: 109126 | S128: -19947
D129: Other assets . . . . . . . . . . . . . . . . . . . . . . . | I129: 0 | J129: 0 | K129: 0 | L129: -4179 | M129: -4935 | N129: -5320 | O129: -8911 | P129: -21908 | Q129: 82120 | R129: -1684 | S129: -5371
D130: Inventories and balance of systems parts . . . . . . . . . | I130: -2124 | J130: -2861 | K130: -9742 | L130: -19832 | M130: -84762 | N130: -52058 | O130: -69680 | P130: -348151 | Q130: -75626 | R130: 15394 | S130: -99870
D131: Project assets and deferred project costs . . . . . . . . . | I131: 0 | J131: 0 | K131: 0 | L131: 0 | M131: 0 | N131: -12546 | O131: -47995 | P131: -368619 | Q131: -174532 | R131: -316022 | S131: 141908
D132: Accounts payable . . . . . . . . . . . . . . . . . . . . . | I132: 0 | J132: 0 | K132: 0 | L132: 0 | M132: 0 | N132: 0 | O132: 0 | P132: 94674 | Q132: 174319 | R132: -93259 | S132: -52339
D133: Income taxes payable . . . . . . . . . . . . . . . . . . . | I133: 0 | J133: 0 | K133: 0 | L133: 0 | M133: 0 | N133: 0 | O133: 0 | P133: 95132 | Q133: 63489 | R133: 36307 | S133: -989
D134: Accrued expenses and other liabilities . . . . . . . . . . | I134: 3050 | J134: 3852 | K134: 17028 | L134: 89899 | M134: 209908 | N134: 107406 | O134: 167568 | P134: 647162 | Q134: 506253 | R134: -138937 | S134: -452438
D135: Accrued solar module collection and recycling liability . . | I135: 0 | J135: 0 | K135: 0 | L135: 0 | M135: 0 | N135: 0 | O135: 0 | P135: 35720 | Q135: 44538 | R135: 10648 | S135: 26052
D136: Total adjustments . . . . . . . . . . . . . . . . . . . . . | I136: 1586 | J136: 11502 | K136: -4550 | L136: 47597 | M136: 114737 | N136: 35055 | O136: 41291 | P136: 6030 | Q136: 858547 | R136: 503088 | S136: 284071
D137: Net cash provided by (used in) operating activities . . . . | I137: -15185 | J137: 5040 | K137: -576 | L137: 205951 | M137: 463067 | N137: 675193 | O137: 705492 | P137: -33463 | Q137: 762209 | R137: 856126 | S137: 680989
I140: 2004 | J140: 2005 | K140: 2006 | L140: 2007 | M140: 2008 | N140: 2009 | O140: 2010 | P140: 2011 | Q140: 2012 | R140: 2013 | S140: 2014
D141: Cash flows from operating activities:
D142: Cash received from customers . . . . . . . . . . | I142: 11152 | J142: 49643 | K142: 110196 | L142: 515994 | M142: 1203822 | N142: 1957604 | O142: 2458088 | P142: 2290944 | Q142: 3231268 | R142: 3868540 | S142: 3366839
D143: Cash paid to suppliers and associates . . . . . . | I143: -26516 | J143: -44674 | K143: -111945 | L143: -276525 | M143: -723123 | N143: -1123746 | O143: -1614763 | P143: -2159429 | Q143: -2447337 | R143: -2973855 | S143: -2642306
D144: Interest received . . . . . . . . . . . . . . . . | I144: 0 | J144: 0 | K144: 2640 | L144: 19965 | M144: 19138 | N144: 6147 | O144: 20531 | P144: 10156 | Q144: 4693 | R144: 6599 | S144: 12966
D145: Interest paid . . . . . . . . . . . . . . . . . . | I145: -45 | J145: -322 | K145: -712 | L145: -2294 | M145: -4629 | N145: -10550 | O145: -7610 | P145: -14229 | Q145: -7601 | R145: . | S145: .
D146: Other . . . . . . . . . . . . . . . . . . . . . . | I146: 224 | J146: 393 | K146: -710 | L146: -1991 | M146: -1505 | N146: 0 | O146: 0 | P146: 0
D147: Income tax (payments) refunds, net . . . . . . . | I147: 0 | J147: 0 | K147: 0 | L147: -19002 | M147: -1975 | N147: -147843 | O147: -80064 | P147: -46153 | Q147: 21543 | R147: 1550 | S147: -17045
D148: Excess tax benefit from share-based compensation | I148: 0 | J148: 0 | K148: -45 | L148: -30196 | M148: -28661 | N148: -4892 | O148: -69367 | P148: -110836 | Q148: -27373 | R148: -35076 | S148: -31166
D149: Other operating activities . . . . . . . . . . . | I149: -57 | J149: -84 | K149: 0 | L149: 0 | M149: 0 | N149: -1527 | O149: -1323 | P149: -3916 | Q149: -669 | R149: -2343 | S149: -698
D150: Net cash provided by operating activities . . . . | I150: -15185 | J150: 5040 | K150: -576 | L150: 205951 | M150: 463067 | N150: 675193 | O150: 705492 | P150: -33463 | Q150: 762209 | R150: 856126 | S150: 680989
D151: Cash flows from investing activities: | I151: 0 | J151: 0 | K151: 0 | L151: 0 | M151: 0 | N151: 0 | O151: 0 | P151: 0 | Q151: 0 | R151: 0 | S151: 0
D152: Purchases of property, plant and equipment . . . | I152: -7733 | J152: -42481 | K152: -153150 | L152: -242371 | M152: -459271 | N152: -279941 | O152: -588914 | P152: -731814 | Q152: -379228 | R152: -282576 | S152: -257549
D153: Proceeds from sale of property, plant and equipme | I153: 0 | J153: 0 | K153: 0 | L153: 0 | M153: 0 | N153: 0 | O153: 0 | P153: 0 | Q153: 5083 | R153: 116403 | S153: 1532
D154: Purchases of marketable securities . . . . . . . | I154: 0 | J154: 0 | K154: 0 | L154: -1081154 | M154: -334818 | N154: -607356 | O154: -462070 | P154: -331240 | Q154: -29200 | R154: -435015 | S154: -305396
D155: Proceeds from maturities and sales of marketable | I155: 0 | J155: 0 | K155: 0 | L155: 0 | M155: 418762 | N155: 115805 | O155: 494256 | P155: 363960 | Q155: 108663 | R155: 93984 | S155: 227900
D156: Investment in notes receivable, affiliate . . . . | I156: 0 | J156: 0 | K156: 0 | L156: 0 | M156: 0 | N156: -99637 | O156: 0 | P156: 0 | Q156: -21659 | R156: 0 | S156: -72692
D157: Payments received on notes receivable, affiliate | I157: 0 | J157: 0 | K157: 0 | L157: 0 | M157: 0 | N157: 25447 | O157: 61658 | P157: 0 | Q157: 4498 | R157: 17108 | S157: 49517
D158: Purchase of restricted investments . . . . . . . | I158: 0 | J158: -1267 | K158: -6804 | L158: -6008 | M158: -15564 | N158: -4150 | O158: -43064 | P158: -62749 | Q158: -80667 | R158: 0 | S158: 0
D159: Change in restricted cash . . . . . . . . . . . . | I159: 0 | J159: 0 | K159: 0 | L159: 0 | M159: 0 | N159: 0 | O159: 0 | P159: -23154 | Q159: 16215 | R159: 5173 | S159: -124061
D160: Sale of investment in related party . . . . . . . | I160: 0 | J160: 0 | K160: 0 | L160: 0 | M160: -25000 | N160: 0 | O160: 28596 | P160: 0
D161: Acquisitions, net of cash acquired . . . . . . . | I161: 0 | J161: 0 | K161: 0 | L161: -5500 | M161: 0 | N161: 318 | O161: -296496 | P161: -21105 | Q161: -2437 | R161: -30745 | S161: -4306
D162: Purchase of equity and cost method investments . | I162: 0 | J162: 0 | K162: 0 | L162: 0 | M162: 0 | N162: 0 | O162: 0 | P162: 0 | Q162: -5000 | R162: -17905 | S162: -24967
D163: Other investing activities . . . . . . . . . . . | I163: 0 | J163: 0 | K163: -40 | L163: 0 | M163: 0 | N163: -1252 | O163: 1301 | P163: 992 | Q163: 0 | R163: -3533 | S163: -1857
I164: 0 | J164: 0 | K164: 0 | L164: 0 | M164: 0 | N164: 0 | O164: 0 | P164: 0
D165: Debt issuance costs . . . . . . . . . . . . . . . | I165: 0 | J165: 0 | K165: 0 | L165: 0 | M165: 0 | N165: 0 | O165: 0 | P165: 0
D166: Net cash used in investing activities . . . . . . | I166: -7790 | J166: -43832 | K166: -159994 | L166: -547250 | M166: -308441 | N166: -701690 | O166: -742085 | P166: -676457 | Q166: -383732 | R166: -537106 | S166: -511879
D167: Cash flows from financing activities: | I167: 0 | J167: 0 | K167: 0 | L167: 0 | M167: 0 | N167: 0 | O167: 0 | P167: 0 | Q167: 0 | R167: 0 | S167: 0
D168: Proceeds from stock option exercises . . . . . . | I168: 0 | J168: 0 | K168: 100 | L168: 10173 | M168: 16036 | N168: 5961 | O168: 9379 | P168: 8326 | Q168: 176 | R168: 1054 | S168: 0
D169: Repayment of borrowings under revolving credit fa | I169: 0 | J169: 0 | K169: 0 | L169: 0 | M169: 0 | N169: 0 | O169: 0 | P169: -450000 | Q169: -1305000 | R169: -605000 | S169: 0
D170: Proceeds from borrowings under revolving credit f | I170: 0 | J170: 0 | K170: 0 | L170: 0 | M170: 0 | N170: 0 | O170: 100000 | P170: 550000 | Q170: 1375000 | R170: 335000 | S170: 0
D171: Repayment of long-term debt . . . . . . . . . . . | I171: 0 | J171: 0 | K171: -135 | L171: -34757 | M171: -41691 | N171: -78224 | O171: -27879 | P171: -33796 | Q171: -178842 | R171: -64954 | S171: -60063
D172: Repayment of notes payable to a related party . . | I172: 0 | J172: 0 | K172: -64700 | L172: 0 | M172: 0 | N172: 0 | O172: 0 | P172: 0
D173: Proceeds from borrowings under long-term debt, ne | I173: 5000 | J173: 15000 | K173: 0 | L173: 0 | M173: 0 | N173: 44739 | O173: 0 | P173: 370108 | Q173: 0 | R173: 0 | S173: 65563
D174: Excess tax benefit from share-based compensation | I174: 0 | J174: 0 | K174: -45 | L174: -30196 | M174: -28661 | N174: -4892 | O174: -69367 | P174: -110836 | Q174: 27373 | R174: 35076 | S174: 31166
D175: Repayment of economic development funding . . . . | I175: 0 | J175: 0 | K175: 0 | L175: 0 | M175: 0 | N175: 0 | O175: 0 | P175: 0 | Q175: -6820 | R175: -8315 | S175: 0
D176: Proceeds from equity offering, net of issuance co | I176: 0 | J176: 0 | K176: 302650 | L176: 365969 | M176: 0 | N176: 615 | O176: 0 | P176: 16188 | Q176: 0 | R176: 428190 | S176: 0
D177: Proceeds from issuance of debt, net of issuance c | I177: 0 | J177: 0 | K177: 130833 | L177: 49368 | M177: 138887 | N177: 0 | O177: 0 | P177: 0
D178: Other equity contributions . . . . . . . . . . . | I178: 17900 | J178: 16663 | K178: 30000 | L178: 0 | M178: 0 | N178: 0 | O178: 0 | P178: 0
D179: Proceeds from notes payable to a related party. . | I179: 0 | J179: 20000 | K179: 36000 | L179: 0 | M179: 0 | N179: 0 | O179: 0 | P179: 0
D180: Proceeds from economic development funding . . . | I180: 0 | J180: 0 | K180: 16766 | L180: 9475 | M180: 35661 | N180: 0 | O180: 0 | P180: 0
D181: Other financing activities. . . . . . . . . . . . | I181: 0 | J181: 0 | K181: -9 | L181: -3 | M181: -5 | N181: 0 | O181: 0 | P181: 0
D182: Contingent consideration payments and other finan | I182: 0 | J182: 0 | K182: 0 | L182: 0 | M182: 0 | N182: -4 | O182: -416 | P182: -444 | Q182: -996 | R182: -19887 | S182: -29307
D183: Net cash provided by (used in) financing activiti | I183: 0 | J183: 0 | K183: 451550 | L183: 430421 | M183: 177549 | N183: -22021 | O183: 150451 | P183: 571218 | Q183: -89109 | R183: 101164 | S183: 7359
D184: Effect of exchange rate changes on cash and cash | I184: -187 | J184: 385 | K184: 391 | L184: 7050 | M184: -20221 | N184: -3201 | O184: -12668 | P184: -21368 | Q184: 6307 | R184: 3594 | S184: -19487
D185: Net increase in cash and cash equivalents . . . . | I185: -262 | J185: 13256 | K185: 291371 | L185: 96172 | M185: 311954 | N185: -51719 | O185: 101190 | P185: -160070 | Q185: 295675 | R185: 423778 | S185: 156982
D186: Cash and cash equivalents, beginning of the perio | I186: 3727 | J186: 3465 | K186: 16721 | L186: 308092 | M186: 404264 | N186: 716218 | O186: 664499 | P186: 765689 | Q186: 605619 | R186: 901294 | S186: 1325072
D187: Cash and cash equivalents, end of the period . . | I187: 3465 | J187: 16721 | K187: 308092 | L187: 404264 | M187: 716218 | N187: 664499 | O187: 765689 | P187: 605619 | Q187: 901294 | R187: 1325072 | S187: 1482054
D188: Supplemental disclosure of noncash investing and | I188: 0 | J188: 0 | K188: 0 | L188: 0 | M188: 0 | N188: 0 | O188: 0 | P188: 0 | Q188: 0 | R188: 0 | S188: 0
D189: Equity interests retained from the partial sale o | I189: 0 | J189: 0 | K189: 0 | L189: 0 | M189: 0 | N189: 0 | O189: 0 | P189: 0 | Q189: 0 | R189: 0 | S189: 220679
D190: Property, plant and equipment acquisitions funded | I190: 0 | J190: 5418 | K190: 2304 | L190: 38320 | M190: 19449 | N190: 59374 | O190: 88977 | P190: 74391 | Q190: 62344 | R190: 60677 | S190: 61130
D191: Acquisitions currently or previously funded by li | I191: 0 | J191: 0 | K191: 0 | L191: 0 | M191: 0 | N191: 0 | O191: 0 | P191: 0 | Q191: 0 | R191: 0 | S191: 0
D192: Shares issued for acquisition . . . . . . . . . . | I192: 0 | J192: 0 | K192: 0 | L192: 0 | M192: 0 | N192: 0 | O192: 0 | P192: 0 | Q192: 53894 | R192: 97885 | S192: 0
D193: Non-cash conversion of debt and accrued interest | I193: 0 | J193: 0 | K193: 0 | L193: 0 | M193: 0 | N193: 0 | O193: 0 | P193: 0 | Q193: 0 | R193: 83755 | S193: 0
D194: Settlement of long-term debt . . . . . . . . . . | I194: 0 | J194: 0 | K194: 0 | L194: 0 | M194: 0 | N194: 0 | O194: 0 | P194: 0
J195: =J102=J70 -> TRUE | K195: TRUE | L195: TRUE | M195: TRUE | N195: TRUE | O195: TRUE | P195: TRUE | Q195: TRUE | R195: TRUE | S195: TRUE
D197: Writeoffs and Restructruing | J197: =J11+J12 -> 0 | K197: 0 | L197: 0 | M197: 0 | N197: 0 | O197: 0 | P197: 453731 | Q197: 469101 | R197: 86896 | S197: 0
D198: Accumulated | J198: =I198+J197 -> 0 | K198: =J198+K197 -> 0 | L198: 0 | M198: 0 | N198: 0 | O198: 0 | P198: 453731 | Q198: 922832 | R198: 1009728 | S198: 1009728
D200: Invested Capital - Direct Asset Basis with SUMPRODUCT | J200: =SUMPRODUCT(J41:J101,$E$41:$E$101)+J198 -> 60117 | K200: 225724 | L200: 521074 | M200: 834634 | N200: 1651908 | O200: 2492484 | P200: 3772735 | Q200: 3718412 | R200: 3542606 | S200: 3558626
D201: Invested Capital - Net Financing and other with SUMPRODUCT | J201: =SUMPRODUCT(J41:J101,$F$41:$F$101)+J198 -> 60117 | K201: 225724 | L201: 521074 | M201: 834634 | N201: 1651908 | O201: 2492484 | P201: 3772735 | Q201: 3718412 | R201: 3542606 | S201: 3558626
J202: =J200-J201 -> 0 | K202: =K200-K201 -> 0 | L202: 0 | M202: 0 | N202: 0 | O202: 0 | P202: 0 | Q202: 0 | R202: 0 | S202: 0
D203: Average Invested Capital | J203: =AVERAGE(I200:J200) -> 60117 | K203: 142920.5 | L203: 373399 | M203: 677854 | N203: 1243271 | O203: 2072196 | P203: 3132609.5 | Q203: 3745573.5 | R203: 3630509 | S203: 3550616
D205: Operating Income + Writeoffs | J205: =J15+J11+J12 -> -4790 | K205: 2810 | L205: 137181 | M205: 438339 | N205: 679615 | O205: 748903 | P205: 385067 | Q205: 431538 | R205: 455425 | S205: 424163
D206: Income Tax Rate | J206: =-J23/J21 -> 0 | K206: =-K23/K21 -> 0.5671023965 | L206: -0.01533706929 | M206: 0.2489262058 | N206: 0.06728115702 | O206: 0.1284332161 | P206: 0.2647403794 | Q206: -1.420309517 | R206: 0.06654421481 | S206: 0.06973293425
D207: Applied Tax Rate | J207: 0.2 | K207: 0.2 | L207: 0.2 | M207: 0.2 | N207: 0.2 | O207: 0.2 | P207: 0.2 | Q207: 0.2 | R207: 0.2 | S207: 0.2
D209: Operating Income Forecast | O209: 622 | P209: 874
D211: Net Operating Income after Tax | J211: =J205*(1-J207) -> -3832 | K211: =K205*(1-K207) -> 2248 | L211: 109744.8 | M211: 350671.2 | N211: 543692 | O211: 599122.4 | P211: 308053.6 | Q211: 345230.4 | R211: 364340 | S211: 339330.4
D212: Return on Invested Capital | J212: =J211/J203 -> -0.06374236905 | K212: =K211/K203 -> 0.01572902418 | L212: 0.2939075895 | M212: 0.5173255598 | N212: 0.4373077149 | O212: 0.2891243878 | P212: 0.09833769578 | Q212: 0.09217023775 | R212: 0.1003550742 | S212: 0.09556944485
D214: Plant Investment Net | J214: =J56+J57+J58 -> 73778 | K214: =K56+K57+K58 -> 178868 | L214: 430104 | M214: 842622 | N214: 1120197 | O214: 1750929 | P214: 2190839 | Q214: 2370860 | R214: 2106000 | S214: 2259045
D216: Working Capital and Other | J216: =SUMPRODUCT($G$41:$G$102,J41:J102) -> -13661 | K216: =SUMPRODUCT($G$41:$G$102,K41:K102) -> 46856 | L216: 90970 | M216: -7988 | N216: 531711 | O216: 741555 | P216: 1128165 | Q216: 424720 | R216: 426878 | S216: 289853
D217: EBITDA | I217: =I205+I33 -> 1944 | J217: =J205+J33 -> -1414 | K217: 13020 | L217: 161662 | M217: 497857 | N217: 809243 | O217: 904996 | P217: 620298 | Q217: 694254 | R217: 689795 | S217: 669961
D218: Percent of EBITDA | J218: =J216/J217 -> 9.661244696 | K218: =K216/K217 -> 3.598771121 | L218: 0.5627172743 | M218: -0.01604476788 | N218: 0.6570473887 | O218: 0.8194014117 | P218: 1.818746796 | Q218: 0.6117645703 | R218: 0.6188476286 | S218: 0.4326416015
D219: Working Capital as Pct of Opening Plant Net | K219: =K216/J214 -> 0.6350944726 | L219: =L216/K214 -> 0.5085873381 | M219: -0.01857225229 | N219: 0.6310196031 | O219: 0.6619862399 | P219: 0.6443236705 | Q219: 0.1938618036 | R219: 0.1800519643 | S219: 0.1376320038
D221: EV to Equity Value Bridge | J221: =SUMPRODUCT(J41:J102,$H$41:$H$102) -> 21723 | K221: =SUMPRODUCT(K41:K102,$H$41:$H$102) -> -235942 | L221: -576193 | M221: -678408 | N221: -1000879 | O221: -962461 | P221: -324859 | Q221: -809946 | R221: -1970239 | S221: -2478589
... 1 more rows
